fUST/lending_fUST_20240715
["ID","MTS","AMOUNT","RATE_DAILY","PERIOD"]
[332130557,1720979444632,-500.0,0.00025479,2]
[332130558,1720979444642,-500.0,0.00025479,2]
[332130560,1720979444651,-504.61,0.00025479,2]
[332130562,1720979444661,-520.83755892,0.00025479,2]
[332130564,1720979444670,-564.56,0.00025479,2]
[332130566,1720979444680,-500.0,0.00025479,2]
[332130568,1720979444689,-500.0,0.00025479,2]
[332130569,1720979444699,-674.73,0.00025479,2]
[332130570,1720979444709,-151.0,0.00025479,7]
[332130571,1720979444718,-500.0,0.00025479,2]
[332130572,1720979444727,-500.0,0.00025479,2]
[332130573,1720979444737,-151.0,0.00025479,7]
[332130574,1720979444746,-152.579321,0.00025479,7]
[332130575,1720979444757,-151.0,0.00025479,7]
[332130576,1720979444768,-172.685778,0.00025479,7]
[332130577,1720979444777,-172.685778,0.00025479,7]
[332130578,1720979444786,-500.0,0.00025479,2]
[332130579,1720979444795,-151.0,0.00025479,7]
[332130580,1720979444804,-500.0,0.00025479,2]
[332130581,1720979444816,-941.56,0.00025479,2]
[332130582,1720979444826,-500.0,0.00025479,2]
[332130583,1720979444835,-500.0,0.00025479,2]
[332130584,1720979444844,-569.65,0.00025479,2]
[332130585,1720979444855,-500.0,0.00025479,2]
[332130586,1720979444866,-500.0,0.00025479,2]
[332130587,1720979444876,-500.0,0.00025479,2]
[332130588,1720979444886,-500.0,0.00025479,2]
[332130589,1720979444895,-500.0,0.00025479,2]
[332130590,1720979444905,-500.0,0.00025479,2]
[332130591,1720979444917,-7698.65,0.00025479,2]
[332130592,1720979444927,-500.0,0.00025479,2]
[332130593,1720979444938,-500.0,0.00025479,2]
[332130594,1720979444947,-500.0,0.00025479,2]
[332130595,1720979444957,-500.0,0.00025479,2]
[332130596,1720979444966,-1211.18,0.00025479,2]
[332130597,1720979444977,-500.0,0.00025479,2]
[332130598,1720979444987,-500.0,0.00025479,2]
[332130599,1720979444996,-569.13,0.00025479,2]
[332130600,1720979445006,-869.79,0.00025479,2]
[332130601,1720979445016,-500.0,0.00025479,2]
[332130602,1720979445027,-3958.19,0.00025479,2]
[332130603,1720979445039,-413.23901291,0.00025479,2]
[332130604,1720979445049,-772.15507792,0.0002549,5]
[332130605,1720979445058,-151.0,0.0002549,7]
[332130606,1720979445068,-151.0,0.0002549,7]
[332130607,1720979445077,-151.0,0.0002549,7]
[332130608,1720979445088,-151.0,0.0002549,7]
[332130609,1720979445097,-151.0,0.0002549,7]
[332130610,1720979445107,-151.0,0.0002549,7]
[332130611,1720979445116,-151.0,0.0002549,7]
[332130612,1720979445126,-151.0,0.0002549,7]
[332130613,1720979445136,-151.0,0.0002549,7]
[332130614,1720979445146,-179.121458,0.0002549,7]
[332130615,1720979445155,-151.0,0.0002549,4]
[332130616,1720979445165,-151.0,0.0002549,7]
[332130617,1720979445174,-151.0,0.0002549,7]
[332130618,1720979445186,-180.20277,0.0002549,7]
[332130619,1720979445196,-172.685778,0.0002549,7]
[332130620,1720979445209,-172.685778,0.0002549,7]
[332130621,1720979445218,-151.0,0.0002549,7]
[332130622,1720979445228,-151.0,0.0002549,7]
[332130623,1720979445238,-151.0,0.0002549,2]
[332130624,1720979445247,-180.448207,0.0002549,7]
[332130625,1720979445257,-180.448207,0.0002549,7]
[332130626,1720979445269,-151.0,0.0002549,7]
[332130627,1720979445278,-110957.78197,0.0002549,3]
[332130628,1720979445288,-151.0,0.0002549,7]
[332130629,1720979445298,-224.59604,0.0002549,7]
[332130630,1720979445308,-224.59604,0.0002549,7]
[332130631,1720979445319,-151.0,0.0002549,7]
[332130632,1720979445328,-281.332999,0.0002549,7]
[332130633,1720979445338,-281.332999,0.0002549,7]
[332130634,1720979445348,-161.516506,0.0002549,7]
[332130635,1720979445357,-161.516506,0.0002549,7]
[332130636,1720979445367,-151.0,0.0002549,7]
[332130637,1720979445377,-54511.48240692,0.000255,2]
[332130674,1720979669141,634.13558226,0.00014999,2]
[332130680,1720979724928,1438.80679991,0.00014999,2]
[332130693,1720979849298,254.06954482,0.00015,2]
[332130695,1720979871719,294.75046907,0.00015,2]
[332130696,1720979896705,287.67977048,0.00015,2]
[332130705,1720980011180,507.03092839,0.00014999,2]
[332130709,1720980127972,745.59908078,0.00014999,2]
[332130716,1720980368799,154.55950541,0.00014999,2]
[332130717,1720980387825,156.28958,0.00014999,2]
[332130718,1720980405388,165.25732412,0.00014999,2]
[332130719,1720980425106,-250.0,0.00016254,2]
[332130720,1720980425140,-50.0,0.00016254,2]
[332130721,1720980425163,-300.0,0.00016254,2]
[332130722,1720980425185,-630.54481249,0.00016255,2]
[332130723,1720980425215,-201.37557725,0.00016255,2]
[332130724,1720980427098,-951.0966239,0.00016255,2]
[332130725,1720980438156,-5434.96029108,0.00016255,2]
[332130726,1720980451094,-158.534686,0.00016255,2]
[332130729,1720980512341,156.28958,0.00014999,2]
[332130730,1720980515001,-246.56700087,0.00016155,2]
[332130732,1720980515041,-300.0,0.00016254,2]
[332130733,1720980515080,-157.04895331,0.00016255,2]
[332130734,1720980515125,-232.27310778,0.00016255,2]
[332130735,1720980515175,-703.61595418,0.00016255,2]
[332130736,1720980535412,242.83545058,0.00014999,2]
[332130738,1720980540067,-736.4060545,0.00016255,2]
[332130739,1720980540153,-268.5678933,0.00016255,2]
[332130740,1720980540229,-736.4060545,0.00016255,2]
[332130741,1720980554116,-974.65727855,0.00016255,2]
[332130744,1720980564974,-771.23365455,0.00016255,2]
[332130746,1720980565098,-771.23365455,0.00016255,2]
[332130747,1720980565202,-752.78136596,0.00016255,2]
[332130749,1720980566092,-202.857005,0.00016255,2]
[332130750,1720980571088,-250.0,0.00016255,2]
[332130751,1720980589983,-665.04735206,0.00016255,2]
[332131402,1720980638689,-447.58228251,0.00018,2]
[332131404,1720980638699,-191.30476359,0.00018798,2]
[332131406,1720980638710,-276.88795357,0.00018899,2]
[332131408,1720980638720,-150.0,0.000189,2]
[332131410,1720980638729,-197.44371632,0.00019039,2]
[332131412,1720980638739,-156.28958,0.00019165,2]
[332131414,1720980638751,-163.50151042,0.00019165,2]
[332131416,1720980638761,-5011.95404984,0.00019703,2]
[332131418,1720980638771,-261.0,0.00019999,2]
[332131420,1720980638781,-10611.62980272,0.0002,2]
[332131422,1720980638790,-3000.0,0.00020347,2]
[332131425,1720980638800,-189.023124,0.00020608,2]
[332131427,1720980638810,-302.765103,0.00020615,2]
[332131429,1720980638820,-750.0,0.00021096,2]
[332131431,1720980638829,-189.023124,0.00021145,2]
[332131433,1720980638839,-162.93312,0.0002122,2]
[332131434,1720980638848,-154.55950541,0.00021671,2]
[332131437,1720980638859,-189.023124,0.00021682,2]
[332131439,1720980638869,-872.50584874,0.00023453,2]
[332131441,1720980638879,-150.0,0.000239,2]
[332131443,1720980638888,-1000.0,0.00024,24]
[332131445,1720980638898,-150.0,0.00024178,2]
[332131447,1720980638908,-503.0,0.00024178,2]
[332131449,1720980638917,-1407.0,0.00024304,2]
[332131451,1720980638927,-413.1318037,0.00024546,2]
[332131453,1720980638937,-500.0,0.00024546,2]
[332131455,1720980638947,-500.0,0.00024546,2]
[332131456,1720980638956,-500.0,0.00024546,2]
[332131459,1720980638967,-500.0,0.00024546,2]
[332131461,1720980638976,-500.0,0.00024546,2]
[332131462,1720980638986,-518.26541134,0.00024546,2]
[332131464,1720980638995,-500.0,0.00024546,2]
[332131466,1720980639005,-500.0,0.00024546,2]
[332131468,1720980639015,-200.0,0.00024546,2]
[332131470,1720980639025,-18020.8213876,0.00024547,3]
[332131472,1720980639035,-500.0,0.00024556,2]
[332131474,1720980639044,-171.74754679,0.00024556,2]
[332131476,1720980639054,-443.37259453,0.00024556,2]
[332131478,1720980639063,-500.0,0.00024556,2]
[332131480,1720980639073,-261.48734357,0.00024556,2]
[332131482,1720980639082,-88888.0,0.00024557,3]
[332131484,1720980639092,-2000.0,0.00024557,2]
[332131486,1720980639102,-193.93680721,0.00024557,2]
[332131488,1720980639112,-72083.2855503,0.00024647,3]
[332131490,1720980639122,-509.73621863,0.00024657,2]
[332131491,1720980639144,-515.90891164,0.00024657,2]
[332131492,1720980639154,-500.0,0.00024657,2]
[332131493,1720980639166,-500.0,0.00024657,2]
[332131494,1720980639181,-528.58,0.00024657,2]
[332131495,1720980639191,-500.0,0.00024657,2]
[332131496,1720980639204,-500.0,0.00024657,2]
[332131497,1720980639214,-594.11487586,0.00024657,2]
[332131498,1720980639225,-500.0,0.00024657,2]
[332131499,1720980639237,-500.0,0.00024657,2]
[332131500,1720980639248,-500.0,0.00024657,2]
[332131501,1720980639259,-400.34264002,0.00024657,2]
[332131502,1720980639269,-500.0,0.00024657,2]
[332131503,1720980639279,-305.02786816,0.00024657,2]
[332131504,1720980639289,-500.0,0.00024657,2]
[332131505,1720980639300,-500.0,0.00024657,2]
[332131506,1720980639311,-500.0,0.00024657,2]
[332131507,1720980639323,-500.0,0.00024657,2]
[332131508,1720980639334,-500.0,0.00024657,2]
[332131509,1720980639344,-500.0,0.00024657,2]
[332131510,1720980639354,-500.0,0.00024657,2]
[332131511,1720980639364,-154.01760287,0.00024657,2]
[332131514,1720980639380,-345.98239713,0.00024657,2]
[332131516,1720980639390,-500.0,0.00024657,2]
[332131518,1720980639400,-500.0,0.00024657,2]
[332131519,1720980639411,-500.0,0.00024657,2]
[332131521,1720980639421,-500.0,0.00024657,2]
[332131523,1720980639431,-500.0,0.00024657,2]
[332131524,1720980639441,-500.0,0.00024657,2]
[332131525,1720980639451,-501.2984015,0.00024657,2]
[332131526,1720980639462,-500.0,0.00024657,2]
[332131527,1720980639613,-500.0,0.00024657,2]
[332131528,1720980639628,-1500.0,0.00024657,2]
[332131529,1720980639638,-500.0,0.00024657,2]
[332131530,1720980639648,-517.55120939,0.00024657,2]
[332131532,1720980639658,-500.0,0.00024657,2]
[332131534,1720980639668,-500.0,0.00024657,2]
[332131535,1720980639677,-500.0,0.00024657,2]
[332131536,1720980639687,-500.0,0.00024657,2]
[332131537,1720980639696,-500.0,0.00024657,2]
[332131538,1720980639705,-500.0,0.00024657,2]
[332131539,1720980639715,-500.0,0.00024657,2]
[332131540,1720980639724,-500.0,0.00024657,2]
[332131541,1720980639733,-500.0,0.00024657,2]
[332131542,1720980639743,-500.0,0.00024657,2]
[332131543,1720980639752,-500.0,0.00024657,2]
[332131544,1720980639762,-500.0,0.00024657,2]
[332131545,1720980639772,-500.0,0.00024657,2]
[332131546,1720980639781,-160.90982571,0.00024657,2]
[332131547,1720980639791,-500.0,0.00024657,2]
[332131548,1720980639800,-680.58,0.00024657,2]
[332131549,1720980639810,-500.0,0.00024657,2]
[332131550,1720980639819,-500.0,0.00024657,2]
[332131551,1720980639828,-500.0,0.00024657,2]
[332131552,1720980639838,-505.43060035,0.00024657,2]
[332131553,1720980639847,-500.0,0.00024657,2]
[332131554,1720980639857,-500.0,0.00024657,2]
[332131555,1720980639867,-500.0,0.00024657,2]
[332131556,1720980639877,-500.0,0.00024657,2]
[332131557,1720980639886,-500.0,0.00024657,2]
[332131558,1720980639896,-500.0,0.00024657,2]
[332131559,1720980639906,-500.0,0.00024657,2]
[332131560,1720980639915,-500.0,0.00024657,2]
[332131561,1720980639927,-500.0,0.00024657,2]
[332131562,1720980639937,-500.0,0.00024657,2]
[332131563,1720980639947,-500.0,0.00024657,2]
[332131564,1720980639956,-500.0,0.00024657,2]
[332131565,1720980639966,-500.0,0.00024657,2]
[332131566,1720980639975,-500.0,0.00024657,2]
[332131567,1720980639985,-500.0,0.00024657,2]
[332131568,1720980639995,-500.0,0.00024657,2]
[332131569,1720980640008,-500.0,0.00024657,2]
[332131570,1720980640018,-569.98932679,0.00024657,2]
[332131571,1720980640027,-500.0,0.00024657,2]
[332131572,1720980640037,-500.0,0.00024657,2]
[332131573,1720980640046,-570.06247913,0.00024657,2]
[332131574,1720980640055,-500.0,0.00024657,2]
[332131575,1720980640065,-500.0,0.00024657,2]
[332131576,1720980640075,-500.0,0.00024657,2]
[332131577,1720980640085,-340.77421299,0.00024657,2]
[332131578,1720980640094,-500.0,0.00024657,2]
[332131579,1720980640104,-500.0,0.00024657,2]
[332131580,1720980640115,-500.0,0.00024657,2]
[332131581,1720980640125,-500.0,0.00024657,2]
[332131582,1720980640135,-500.0,0.00024657,2]
[332131583,1720980640144,-500.0,0.00024657,2]
[332131584,1720980640154,-500.0,0.00024657,2]
[332131586,1720980640163,-500.0,0.00024657,2]
[332131587,1720980640174,-500.0,0.00024657,2]
[332131589,1720980640186,-500.0,0.00024657,2]
[332131591,1720980640195,-500.0,0.00024657,2]
[332131592,1720980640205,-501.65633058,0.00024657,2]
[332131593,1720980640215,-513.0102623,0.00024657,2]
[332131594,1720980640226,-500.0,0.00024657,2]
[332131595,1720980640235,-500.0,0.00024657,2]
[332131596,1720980640244,-500.00046505,0.00024657,2]
[332131597,1720980640255,-500.0,0.00024657,2]
[332131598,1720980640265,-500.0,0.00024657,2]
[332131599,1720980640275,-481.65124058,0.00024657,2]
[332131600,1720980640286,-500.0,0.00024657,2]
[332131601,1720980640295,-1000.43223506,0.00024657,5]
[332131602,1720980640304,-500.0,0.00024657,2]
[332131603,1720980640314,-500.0,0.00024657,2]
[332131604,1720980640323,-500.0,0.00024657,2]
[332131605,1720980640332,-500.0,0.00024657,2]
[332131606,1720980640342,-500.0,0.00024657,2]
[332131607,1720980640351,-500.0,0.00024657,2]
[332131609,1720980640361,-500.0,0.00024657,2]
[332131610,1720980640371,-502.78077326,0.00024657,2]
[332131611,1720980640381,-500.0,0.00024657,2]
[332131612,1720980640391,-500.0,0.00024657,2]
[332131613,1720980640400,-500.0,0.00024657,2]
[332131614,1720980640410,-500.0,0.00024657,2]
[332131615,1720980640421,-500.0,0.00024657,2]
[332131616,1720980640431,-500.0,0.00024657,2]
[332131617,1720980640442,-500.0,0.00024657,2]
[332131618,1720980640454,-500.0,0.00024657,2]
[332131619,1720980640464,-500.0,0.00024657,2]
[332131620,1720980640474,-500.0,0.00024657,2]
[332131622,1720980640483,-500.0,0.00024657,2]
[332131624,1720980640493,-500.0,0.00024657,2]
[332131626,1720980640502,-500.0,0.00024657,2]
[332131628,1720980640511,-500.0,0.00024657,2]
[332131630,1720980640522,-500.0,0.00024657,2]
[332131632,1720980640531,-630.6,0.00024657,2]
[332131634,1720980640541,-500.0,0.00024657,2]
[332131636,1720980640551,-500.0,0.00024657,2]
[332131639,1720980640562,-500.2480666,0.00024657,2]
[332131641,1720980640572,-200.0,0.00024657,7]
[332131643,1720980640582,-500.0,0.00024657,2]
[332131645,1720980640591,-500.0,0.00024657,2]
[332131647,1720980640601,-633.69358454,0.00024657,2]
[332131649,1720980640610,-500.0,0.00024657,2]
[332131651,1720980640620,-500.0,0.00024657,2]
[332131653,1720980640629,-500.0,0.00024657,2]
[332131655,1720980640639,-597.24970791,0.00024657,2]
[332131657,1720980640649,-500.0,0.00024657,2]
[332131659,1720980640659,-500.0,0.00024657,2]
[332131661,1720980640669,-500.0,0.00024657,2]
[332131663,1720980640680,-500.0,0.00024657,2]
[332131665,1720980640689,-500.0,0.00024657,2]
[332131667,1720980640701,-343.3058916,0.00024657,2]
[332131669,1720980640711,-500.0,0.00024657,2]
[332131672,1720980640722,-500.0,0.00024657,2]
[332131674,1720980640733,-500.0,0.00024657,2]
[332131676,1720980640743,-500.0,0.00024657,2]
[332131678,1720980640753,-500.0,0.00024657,2]
[332131680,1720980640763,-500.0,0.00024657,2]
[332131682,1720980640772,-500.0,0.00024657,2]
[332131684,1720980640782,-500.0,0.00024657,2]
[332131686,1720980640792,-500.0,0.00024657,2]
[332131688,1720980640802,-507.50561512,0.00024657,2]
[332131690,1720980640812,-500.0,0.00024657,2]
[332131692,1720980640821,-500.0,0.00024657,2]
[332131694,1720980640831,-545.44055427,0.00024657,2]
[332131696,1720980640840,-500.0,0.00024657,2]
[332131698,1720980640850,-500.0,0.00024657,2]
[332131700,1720980640859,-500.0,0.00024657,2]
[332131702,1720980640869,-500.0,0.00024657,2]
[332131704,1720980640879,-500.0,0.00024657,2]
[332131706,1720980640888,-500.0,0.00024657,2]
[332131708,1720980640897,-500.0,0.00024657,2]
[332131710,1720980640906,-502.64858833,0.00024657,2]
[332131712,1720980640915,-500.0,0.00024657,2]
[332131714,1720980640924,-507.16661374,0.00024657,2]
[332131716,1720980640935,-500.0,0.00024657,2]
[332131718,1720980640944,-500.0,0.00024657,2]
[332131720,1720980640953,-500.0,0.00024657,2]
[332131722,1720980640962,-280.29,0.00024657,2]
[332131724,1720980640972,-500.0,0.00024657,2]
[332131726,1720980640983,-500.0,0.00024657,2]
[332131728,1720980640994,-500.0,0.00024657,2]
[332131730,1720980641004,-500.0,0.00024657,2]
[332131733,1720980641017,-500.0,0.00024657,2]
[332131735,1720980641027,-500.0,0.00024657,2]
[332131737,1720980641037,-500.0,0.00024657,2]
[332131739,1720980641048,-500.0,0.00024657,2]
[332131741,1720980641058,-500.0,0.00024657,2]
[332131743,1720980641067,-500.0,0.00024657,2]
[332131745,1720980641076,-500.0,0.00024657,2]
[332131748,1720980641087,-500.0,0.00024657,2]
[332131750,1720980641096,-500.0,0.00024657,2]
[332131752,1720980641105,-500.0,0.00024657,2]
[332131754,1720980641114,-500.0,0.00024657,2]
[332131756,1720980641123,-507.93933676,0.00024657,2]
[332131758,1720980641133,-500.0,0.00024657,2]
[332131760,1720980641143,-500.0,0.00024657,2]
[332131762,1720980641152,-500.0,0.00024657,2]
[332131764,1720980641160,-500.0,0.00024657,2]
[332131766,1720980641170,-500.0,0.00024657,2]
[332131768,1720980641182,-504.4662291,0.00024657,2]
[332131769,1720980641191,-505.10332189,0.00024657,2]
[332131771,1720980641200,-500.0,0.00024657,2]
[332131773,1720980641209,-500.0,0.00024657,2]
[332131775,1720980641218,-500.0,0.00024657,2]
[332131778,1720980641229,-500.0,0.00024657,2]
[332131780,1720980641239,-500.0,0.00024657,2]
[332131782,1720980641252,-500.0,0.00024657,2]
[332131784,1720980641262,-523.03485607,0.00024657,2]
[332131786,1720980641272,-500.0,0.00024657,2]
[332131788,1720980641281,-328.42450067,0.00024657,2]
[332131790,1720980641290,-500.0,0.00024657,2]
[332131792,1720980641299,-500.0,0.00024657,2]
[332131794,1720980641308,-500.0,0.00024657,2]
[332131796,1720980641318,-555.50872868,0.00024657,2]
[332131798,1720980641327,-500.0,0.00024657,2]
[332131800,1720980641337,-500.0,0.00024657,2]
[332131802,1720980641346,-500.0,0.00024657,2]
[332131804,1720980641356,-944.67,0.00024657,2]
[332131806,1720980641365,-500.0,0.00024657,2]
[332131808,1720980641374,-500.0,0.00024657,2]
[332131810,1720980641384,-500.0,0.00024657,2]
[332131812,1720980641393,-500.0,0.00024657,2]
[332131814,1720980641403,-507.62364398,0.00024657,2]
[332131816,1720980641412,-540.05567798,0.00024657,2]
[332131818,1720980641421,-220.0533065,0.00024657,2]
[332131820,1720980641431,-500.0,0.00024657,2]
[332131821,1720980641441,-500.0,0.00024657,2]
[332131822,1720980641450,-500.0,0.00024657,2]
[332131823,1720980641459,-500.0,0.00024657,2]
[332131824,1720980641470,-500.0,0.00024657,2]
[332131825,1720980641480,-500.0,0.00024657,2]
[332131826,1720980641489,-500.0,0.00024657,2]
[332131827,1720980641499,-500.0,0.00024657,2]
[332131828,1720980641508,-500.0,0.00024657,2]
[332131829,1720980641517,-500.0,0.00024657,2]
[332131830,1720980641526,-500.0,0.00024657,2]
[332131831,1720980641535,-500.0,0.00024657,2]
[332131832,1720980641544,-500.0,0.00024657,2]
[332131833,1720980641554,-500.0,0.00024657,2]
[332131834,1720980641563,-500.0,0.00024657,2]
[332131835,1720980641572,-508.91320766,0.00024657,2]
[332131836,1720980641582,-500.0,0.00024657,2]
[332131837,1720980641592,-500.0,0.00024657,2]
[332131838,1720980641601,-500.0,0.00024657,2]
[332131839,1720980641611,-500.0,0.00024657,2]
[332131840,1720980641620,-500.0,0.00024657,2]
[332131841,1720980641629,-500.0,0.00024657,2]
[332131842,1720980641639,-500.0,0.00024657,2]
[332131843,1720980641648,-500.0,0.00024657,2]
[332131844,1720980641657,-500.0,0.00024657,2]
[332131845,1720980641667,-500.0,0.00024657,2]
[332131846,1720980641676,-509.34027352,0.00024657,2]
[332131847,1720980641686,-500.0,0.00024657,2]
[332131848,1720980641695,-500.0,0.00024657,2]
[332131849,1720980641704,-500.0,0.00024657,2]
[332131850,1720980641714,-500.0,0.00024657,2]
[332131851,1720980641725,-500.0,0.00024657,2]
[332131852,1720980641734,-500.0,0.00024657,2]
[332131853,1720980641743,-500.0,0.00024657,2]
[332131854,1720980641752,-500.0,0.00024657,2]
[332131855,1720980641762,-500.0,0.00024657,2]
[332131856,1720980641771,-500.0,0.00024657,2]
[332131857,1720980641781,-500.0,0.00024657,2]
[332131858,1720980641790,-500.0,0.00024657,2]
[332131859,1720980641799,-503.69316645,0.00024657,2]
[332131860,1720980641808,-500.0,0.00024657,2]
[332131861,1720980641817,-500.0,0.00024657,2]
[332131862,1720980641826,-500.0,0.00024657,2]
[332131863,1720980641836,-500.0,0.00024657,2]
[332131864,1720980641845,-500.0,0.00024657,2]
[332131865,1720980641854,-500.0,0.00024657,2]
[332131866,1720980641863,-500.0,0.00024657,2]
[332131867,1720980641873,-512.95582776,0.00024657,2]
[332131868,1720980641882,-364.16210115,0.00024657,2]
[332131869,1720980641891,-506.65033317,0.00024657,2]
[332131870,1720980641901,-534.48230157,0.00024657,2]
[332131871,1720980641910,-500.0,0.00024657,2]
[332131872,1720980641920,-500.0,0.00024657,2]
[332131873,1720980641930,-500.0,0.00024657,2]
[332131874,1720980641939,-500.0,0.00024657,2]
[332131875,1720980641949,-500.0,0.00024657,2]
[332131876,1720980641959,-500.0,0.00024657,2]
[332131877,1720980641972,-500.0,0.00024657,2]
[332131878,1720980641982,-500.0,0.00024657,2]
[332131879,1720980641995,-500.0,0.00024657,2]
[332131880,1720980642004,-500.0,0.00024657,2]
[332131881,1720980642013,-500.0,0.00024657,2]
[332131882,1720980642022,-500.0,0.00024657,2]
[332131883,1720980642113,-500.0,0.00024657,2]
[332131884,1720980642123,-500.0,0.00024657,2]
[332131885,1720980642133,-500.0,0.00024657,2]
[332131886,1720980642143,-500.0,0.00024657,2]
[332131887,1720980642153,-500.0,0.00024657,2]
[332131888,1720980642162,-500.0,0.00024657,2]
[332131889,1720980642172,-500.0,0.00024657,2]
[332131890,1720980642186,-500.0,0.00024657,2]
[332131891,1720980642196,-500.0,0.00024657,2]
[332131892,1720980642205,-500.0,0.00024657,2]
[332131893,1720980642214,-500.0,0.00024657,2]
[332131894,1720980642229,-7057.1,0.00024657,2]
[332131895,1720980642238,-500.0,0.00024657,2]
[332131896,1720980642248,-510.41277995,0.00024657,2]
[332131897,1720980642259,-500.0,0.00024657,2]
[332131898,1720980642268,-500.0,0.00024657,2]
[332131899,1720980642278,-500.0,0.00024657,2]
[332131900,1720980642287,-500.0,0.00024657,2]
[332131901,1720980642296,-500.0,0.00024657,2]
[332131902,1720980642305,-500.0,0.00024657,2]
[332131903,1720980642314,-538.79963971,0.00024657,2]
[332131904,1720980642323,-500.0,0.00024657,2]
[332131905,1720980642333,-500.0,0.00024657,2]
[332131906,1720980642343,-500.0,0.00024657,2]
[332131907,1720980642352,-500.0,0.00024657,2]
[332131908,1720980642362,-500.0,0.00024657,2]
[332131909,1720980642371,-500.0,0.00024657,2]
[332131910,1720980642380,-500.0,0.00024657,2]
[332131911,1720980642389,-500.0,0.00024657,2]
[332131912,1720980642399,-500.0,0.00024657,2]
[332131913,1720980642408,-500.0,0.00024657,2]
[332131914,1720980642417,-500.0,0.00024657,4]
[332131915,1720980642427,-537.29,0.00024657,2]
[332131916,1720980642436,-500.0,0.00024657,2]
[332131917,1720980642445,-500.0,0.00024657,2]
[332131918,1720980642454,-500.0,0.00024657,2]
[332131919,1720980642463,-500.0,0.00024657,2]
[332131920,1720980642475,-500.0,0.00024657,2]
[332131921,1720980642484,-500.0,0.00024657,2]
[332131922,1720980642493,-500.0,0.00024657,2]
[332131923,1720980642502,-500.0,0.00024657,2]
[332131924,1720980642511,-500.0,0.00024657,2]
[332131925,1720980642521,-503.38961662,0.00024657,2]
[332131926,1720980642531,-500.0,0.00024657,2]
[332131927,1720980642539,-500.0,0.00024657,2]
[332131928,1720980642548,-500.0,0.00024657,2]
[332131929,1720980642559,-500.0,0.00024657,2]
[332131930,1720980642569,-500.0,0.00024657,2]
[332131931,1720980642578,-500.0,0.00024657,2]
[332131932,1720980642588,-500.0,0.00024657,2]
[332131933,1720980642597,-500.0,0.00024657,2]
[332131934,1720980642607,-500.0,0.00024657,2]
[332131935,1720980642616,-500.0,0.00024657,2]
[332131936,1720980642625,-209.1071623,0.00024657,2]
[332131937,1720980642635,-500.0,0.00024657,2]
[332131938,1720980642644,-500.0,0.00024657,2]
[332131939,1720980642654,-500.0,0.00024657,2]
[332131940,1720980642663,-500.0,0.00024657,2]
[332131941,1720980642672,-1110.25,0.00024657,2]
[332131942,1720980642682,-500.0,0.00024657,2]
[332131943,1720980642691,-500.0,0.00024657,2]
[332131944,1720980642701,-500.0,0.00024657,2]
[332131945,1720980642711,-500.0,0.00024657,2]
[332131946,1720980642722,-521.7,0.00024657,2]
[332131947,1720980642731,-500.0,0.00024657,2]
[332131948,1720980642741,-500.0,0.00024657,2]